Cogmind - Beta 17 *** ADVENTURER MODE // 2026.07.28 @ 16:20:26 Player: Quirbus Result: Destroyed by B-75 Beast with Magnetic Acceleration Cannon Performance ------------- Evolutions (2) 1000 Regions Visited (5) 1000 Robots Destroyed (64) 320 Value Destroyed (2090) 2090 Prototype IDs (0) 0 Alien Tech Used (0) 0 Bonus (448) 448 TOTAL SCORE: 4858 Bonus ------- High Alert Combat Kills 30 Follower Combat Kills 218 Entered Garrisons 200 Cogmind --------- Core Integrity 0/550 Matter 267/300 Energy 156/250 System Corruption 0% Temperature Cool (12) Movement Core (350) Ox6 Location -8/Garrison Parts ------- > --- POWER (1) -------- Ion Engine > --- PROPULSION (3) --- (None) > --- UTILITY (5) ------ Improved Heat Sink Medium Storage Unit Hacking Suite > --- WEAPON (2) ------- Beamcaster > --- INVENTORY (10) --- Ion Engine Advanced Visual Processing Unit Experimental Sensor Array Target Analyzer Relay Coupler [Grunt] (29) Relay Coupler [Sentry] (28) Remote Datajack Mining Laser Peak State ------------ > --- POWER ------------ Light Nuclear Core > --- PROPULSION ------- Aluminum Leg Aluminum Leg Carbon-fiber Leg > --- UTILITY ---------- Improved Heat Sink Improved Heat Sink Advanced Heat Sink Medium Storage Unit Hacking Suite > --- WEAPON ----------- Beamcaster Gauss Rifle > --- INVENTORY -------- Ion Engine Ion Engine Advanced Visual Processing Unit Experimental Sensor Array Target Analyzer Relay Coupler [Grunt] Relay Coupler [Sentry] Light Assault Rifle Remote Datajack Mining Laser [Rating: 35] Favorites ----------- Power Light Ion Engine Engine Light Ion Engine Power Core Light Nuclear Core Propulsion Aluminum Leg Leg Aluminum Leg Utility Improved Heat Sink Device Improved Heat Sink Storage Medium Storage Unit Hackware Hacking Suite Protection Light Armor Plating Weapon Light Assault Rifle Energy Gun Small Laser Energy Cannon Heavy Particle Cannon Ballistic Gun Light Assault Rifle Ballistic Cannon Light Cannon Special Weapon Mining Laser Build | -11 -10 -10 -9 -8 -8 ------- Run | Yrd Mat Min Mat Mat Gar Slots Evolved 4 | . . . 2 2 . Power . | . . . . . . Propulsion 1 | . . . . 1 . Utility 3 | . . . 2 1 . Weapon . | . . . . . . Parts Attached 61 | 6 11 1 15 2 26 Power 9 | 1 2 . 2 1 3 Engine 7 | 1 2 . 2 1 1 Core 2 | . . . . . 2 Reactor . | . . . . . . Propulsion 18 | 2 3 1 4 1 7 Treads . | . . . . . . Leg 18 | 2 3 1 4 1 7 Wheel . | . . . . . . Hover . | . . . . . . Flight . | . . . . . . Utility 17 | 1 3 . 6 . 7 Device 12 | . 2 . 3 . 7 Storage 3 | 1 . . 2 . . Processor . | . . . . . . Hackware 1 | . . . 1 . . Protection 1 | . 1 . . . . Artifact . | . . . . . . Weapon 17 | 2 3 . 3 . 9 Energy Gun 5 | 2 1 . . . 2 Energy Cannon 1 | . . . 1 . . Ballistic Gun 7 | . 1 . 1 . 5 Ballistic Cannon 1 | . 1 . . . . Launcher . | . . . . . . Special Weapon 3 | . . . 1 . 2 Impact Weapon . | . . . . . . Slashing Weapon . | . . . . . . Piercing Weapon . | . . . . . . Special Melee Weapon . | . . . . . . Unidentified Prototypes . | . . . . . . Parts Lost 29 | . 2 . 7 . 20 Power 5 | . 2 . 1 . 2 Propulsion 11 | . . . 2 . 9 Utility 7 | . . . 2 . 5 Weapon 6 | . . . 2 . 4 Highest Loss Streak 8 | . 1 . 7 . 8 To Critical Strikes 1 | . . . 1 . . Average Backups 7 | 2 6 8 7 8 9 Power 1 | 1 . . . 2 2 Propulsion . | . 1 . 1 2 . Utility 2 | . 2 4 2 2 2 Weapon 2 | 1 2 2 1 2 2 Tool/Special . | . . . . . . Unused Backups 14 | . 2 2 . 1 9 Power 2 | . . . . . 2 Propulsion 1 | . 1 . . . . Utility 10 | . 1 2 . 1 6 Weapon 1 | . . . . . 1 Tool/Special . | . . . . . . Average Slot Usage (%) 96 | . 98 100 96 99 92 Engine 9 | . 13 14 10 9 4 Core 1 | . . . . . 4 Leg 25 | . 28 28 20 27 24 Device 16 | . 12 14 13 17 21 Storage 11 | . 14 14 11 9 9 Hackware 5 | . . . 10 9 9 Protection 2 | . 1 . 7 9 1 Energy Gun 8 | . 21 14 2 . 2 Energy Cannon 2 | . . . 8 9 1 Ballistic Gun 6 | . 4 . 8 9 10 Ballistic Cannon 4 | . 2 14 2 . . Peak Build Rating 35 | 6 8 8 17 21 35 Average Rating 14 | 5 7 7 14 20 24 On Entrance 9 | . 6 7 8 17 21 Avg Prop Armor Cover (%) . | . . . . . . Naked Turns . | . . . . . . Heaviest Build 31 | 14 17 13 26 31 31 Greatest Support 35 | 20 20 20 20 30 35 Greatest Overweight (x) 7 | 4 . . 6 1 7 Average Overweight (x) . | . . . . . . Largest Inventory Capacity 15 | 8 8 8 15 10 10 Average Capacity 9 | 7 8 8 9 10 10 Most Carried 10 | 5 8 8 10 10 10 Average Carried 7 | 2 6 7 7 8 9 Final Capacity 10 | 8 8 8 10 10 10 Final Carried 10 | 2 8 8 10 9 8 Class Distribution -------------------- 55% | Scavenger-Mutant 33% | Mutant 11% | Hacker-Mutant Dominant Class ---------------- Mutant | -10/Materials Mutant | -10/Mines Scavenger-Mutant | -9/Materials Scavenger-Mutant | -8/Materials Scavenger-Mutant | -8/Garrison Resources | -11 -10 -10 -9 -8 -8 ----------- Run | Yrd Mat Min Mat Mat Gar Matter Collected 1292 | 165 264 104 164 113 482 Remotely . | . . . . . . Salvage Created 2062 | . 709 157 551 . 645 Parts 120 | . 38 11 29 . 42 Haulers Intercepted . | . . . . . . Recyclers Shooed . | . . . . . . Parts Field Recycled . | . . . . . . Retrieved Matter . | . . . . . . Parts Self-Destructed . | . . . . . . Prevented . | . . . . . . Parts Restored . | . . . . . . Kills | -11 -10 -10 -9 -8 -8 ------- Run | Yrd Mat Min Mat Mat Gar Combat Hostiles Destroyed 61 | . 15 8 14 . 24 Guns 39 | . 14 3 3 . 19 Cannons 22 | . 1 5 11 . 5 Classes Destroyed 6 | . 5 . 1 . . Recycler 1 | . 1 . . . . Watcher 2 | . 1 . 1 . . Swarmer 24 | . 3 5 . . 16 Grunt 35 | . 11 3 13 . 8 Brawler 1 | . . . 1 . . Subdweller 1 | . 1 . . . . Best Kill Streak 5 | . 4 3 5 . 5 Combat Bots Only 5 | . 3 3 4 . 5 Max Kills in Single Turn 2 | . 2 1 1 . 2 Gunslinging 1 | . 1 . . . 1 Exploded . | . . . . . . Melee . | . . . . . . Uniques/NPCs Destroyed . | . . . . . . Combat | -11 -10 -10 -9 -8 -8 -------- Run | Yrd Mat Min Mat Mat Gar Hostile Shots Fired 504 | . 74 20 103 . 307 Missed 141 | . 19 8 27 . 87 Hits 363 | . 55 12 76 . 220 Melee 7 | . . . 7 . . Projectile 356 | . 55 12 69 . 220 Critical Strikes 7 | . 1 . 2 . 4 Damage Taken 3757 | . 615 78 707 . 2357 Core 837 | . 110 16 161 . 550 Absorbed by Shields . | . . . . . . Ignored by Resistances 1136 | . 186 27 224 . 699 Regen/Repaired (Parts) 17 | . . . . 17 . Core Remaining (%) 69 | 100 . 49 59 . . Volleys Fired 228 | . 50 16 38 . 124 Largest 2 | . 2 2 2 . 2 Hottest 103 | . 90 70 95 . 103 Shots Fired 427 | . 100 32 79 . 216 Gun 308 | . 87 16 42 . 163 Cannon 89 | . 13 16 32 . 28 Launcher . | . . . . . . Special 30 | . . . 5 . 25 Kinetic 212 | . 30 16 39 . 127 Thermal 186 | . 42 16 40 . 88 Explosive . | . . . . . . Electromagnetic 28 | . 28 . . . . Robot Hit Streak 46 | . 10 11 31 . 46 Robot Miss Streak 3 | . 3 3 1 . 2 Penetration Max . | . . . . . . Secondary Targets 6 | . 4 . . . 2 Max Gunslinging Chain 1 | . 1 . . . 1 Shots Hit Robots 295 | . 69 23 57 . 146 Core Hits 119 | . 30 11 26 . 52 Critical Kills . | . . . . . . Critical Parts Destroyed . | . . . . . . Critical Strikes 8 | . 3 1 1 . 3 Burn 3 | . 1 . . . 2 Destroy 2 | . 1 . . . 1 Blast 3 | . 1 1 1 . . Melee Attacks . | . . . . . . Impact . | . . . . . . Slashing . | . . . . . . Piercing . | . . . . . . Sneak Attacks . | . . . . . . Combat Hostiles . | . . . . . . Follow-up Attacks . | . . . . . . Damage Inflicted 4051 | . 899 340 809 . 2003 Guns 2637 | . 761 121 275 . 1480 Cannons 1345 | . 138 216 516 . 475 Explosions . | . . . . . . Melee . | . . . . . . Ramming 3 | . . 3 . . . Kinetic 1739 | . 225 216 377 . 921 Thermal 2009 | . 374 121 432 . 1082 Explosive . | . . . . . . Electromagnetic 300 | . 300 . . . . Impact . | . . . . . . Slashing . | . . . . . . Piercing . | . . . . . . Highest Corruption 6 | . . . 6 . . Average Corruption 5 | . . . 5 . . Corruption Purged . | . . . . . . Corruption Blocked . | . . . . . . Effects 17 | . . . 17 . . Message Errors 4 | . . . 4 . . Matter Fused 2 | . . . 2 . . Heat Flow Errors 1 | . . . 1 . . Energy Discharges 5 | . . . 5 . . Data Loss (minor) 1 | . . . 1 . . Data Loss (major) 1 | . . . 1 . . Misfires 3 | . . . 3 . . Overload Shots . | . . . . . . Overflow Damage 7 | . . . . . 7 Projectiles 7 | . . . . . 7 Explosions . | . . . . . . Melee . | . . . . . . Knockbacks 7 | . 1 3 3 . . Impact . | . . . . . . Kinetic 7 | . 1 3 3 . . Secondary . | . . . . . . Self-Inflicted Damage . | . . . . . . Shots . | . . . . . . Rammed . | . . . . . . Targets Rammed 1 | . . 1 . . . Kicked 1 | . . 1 . . . Crushed . | . . . . . . Highest Temperature 294 | . 294 36 90 . 160 Average Temperature 52 | . 73 15 33 . 51 Received Heat Transfer 1524 | . 282 6 414 . 822 Siege Activations . | . . . . . . Martial Activations . | . . . . . . Shielding Activations . | . . . . . . Robots Disrupted . | . . . . . . Combat Hostiles . | . . . . . . Robots Corrupted . | . . . . . . Combat Hostiles . | . . . . . . Parts Fried . | . . . . . . Impact Corruptions . | . . . . . . Robots Melted . | . . . . . . Combat Hostiles . | . . . . . . Parts Melted 4 | . 1 . 2 . 1 Heat Transferred 4171 | . 1089 275 857 . 1950 Parts Sabotaged . | . . . . . . Parts Stolen . | . . . . . . Parts Stripped . | . . . . . . Power Chain Reactions . | . . . . . . Alert | -11 -10 -10 -9 -8 -8 ------- Run | Yrd Mat Min Mat Mat Gar Maximum Alert Level 3 | . . . . . 3 Low Security (%) 75 | 100 100 100 100 100 19 Level 1 10 | . . . . . 34 Level 2 11 | . . . . . 37 Level 3 2 | . . . . . 8 Level 4 . | . . . . . . Level 5 . | . . . . . . High Security . | . . . . . . Max Security . | . . . . . . Peak Influence 770 | . 153 70 117 10 770 Initial 14 | . . 14 . 10 . Average 142 | . 88 9 30 1 388 Influence Increases 1851 | . 355 190 346 . 960 Destroy 0b10 Robot/C 1320 | . 280 160 280 . 600 Destroy 0b10 Robot/NC 15 | . 10 . 5 . . Destroy Leader 164 | . 42 30 52 . 40 Allied During Kill 19 | . . . . . 19 Successful Hack 44 | . 23 . 5 . 16 Anti-Garrison Action 200 | . . . . . 200 Destroy Structure 89 | . . . 4 . 85 Influence Decreases 1181 | . 310 235 315 31 290 Entered New Map 52 | . . 31 . 21 . Time Decay 749 | . 290 204 245 10 . Lost Part 290 | . 20 . 70 . 200 Lost Ally 90 | . . . . . 90 Squads Dispatched 6 | . 2 . 4 . . Investigation 5 | . 2 . 3 . . Extermination . | . . . . . . Reinforcement 1 | . . . 1 . . Assault . | . . . . . . Garrison . | . . . . . . Intercept . | . . . . . . Searches Triggered . | . . . . . . Construction Impeded . | . . . . . . Haulers Reinforced . | . . . . . . Active Scanning Responses . | . . . . . . Cargo Convoy Interrupts . | . . . . . . Stealth | -11 -10 -10 -9 -8 -8 --------- Run | Yrd Mat Min Mat Mat Gar Distress Signals 4 | . 2 1 1 . . Communications Jammed . | . . . . . . Distress Signals . | . . . . . . Times Spotted 81 | . 20 9 19 . 33 Peak Tracking Total 8 | . 5 2 5 . 8 Tactical Retreats 2 | . 2 . . . . Traps | -11 -10 -10 -9 -8 -8 ------- Run | Yrd Mat Min Mat Mat Gar Traps Triggered 6 | . 2 . 1 . 3 Indirectly . | . . . . . . Trap Hack Attempts . | . . . . . . Triggered . | . . . . . . Disarmed . | . . . . . . Reprogrammed . | . . . . . . Reused . | . . . . . . Traps Extracted . | . . . . . . Installed . | . . . . . . Triggered . | . . . . . . Machines | -11 -10 -10 -9 -8 -8 ---------- Run | Yrd Mat Min Mat Mat Gar Machines Disabled 2 | . . . . . 2 Max in Single Turn 1 | . . . . . 1 Garrison Relay 2 | . . . . . 2 Machines Repaired . | . . . . . . Machines Dismantled . | . . . . . . Machines Sabotaged . | . . . . . . Overloaded Fab Kills . | . . . . . . Hacking | -11 -10 -10 -9 -8 -8 --------- Run | Yrd Mat Min Mat Mat Gar Machines Accessed 11 | . 3 . 4 2 2 Terminals 9 | . 3 . 4 . 2 Fabricators . | . . . . . . Repair Stations 1 | . . . . 1 . Recycling Units . | . . . . . . Scanalyzers . | . . . . . . Garrison Access 1 | . . . . 1 . Total Hacks 33 | . 6 . 16 6 5 Successful 21 | . 5 . 9 4 3 Failed 12 | . 1 . 7 2 2 Catastrophic 1 | . 1 . . . . Database Lockouts . | . . . . . . Manual 12 | . 1 . 9 . 2 Terminals 27 | . 6 . 16 . 5 Fabricators . | . . . . . . Repair Stations 2 | . . . . 2 . Recycling Units . | . . . . . . Scanalyzers . | . . . . . . Garrison Access 4 | . . . . 4 . Terminal Hacks 12 | . 4 . 5 . 3 Record 1 | . 1 . . . . Open Door 1 | . . . . . 1 Level Access Points 1 | . 1 . . . . Branch Access Points 1 | . . . 1 . . Emergency Access Points 3 | . . . 2 . 1 Alert Level 1 | . . . 1 . . Locate Traps 2 | . . . 1 . 1 Investigation Status 1 | . 1 . . . . Registered Components 1 | . 1 . . . . Fabricator Hacks . | . . . . . . Repair Station Hacks 2 | . . . . 2 . Scan Component 1 | . . . . 1 . Repair 1 | . . . . 1 . Recycling Unit Hacks . | . . . . . . Scanalyzer . | . . . . . . Garrison Access Hacks 2 | . . . . 2 . Unlock Access 1 | . . . . 1 . Coupler Status 1 | . . . . 1 . Unauthorized Hacks 5 | . 1 . 4 . . Terminals 5 | . 1 . 4 . . Assimilate 5 | . 1 . 4 . . Fabricators . | . . . . . . Repair Stations . | . . . . . . Recycling Units . | . . . . . . Scanalyzers . | . . . . . . Garrison Access . | . . . . . . Data Cores Recovered . | . . . . . . Used . | . . . . . . Hacking Detections 10 | . 2 . 4 2 2 Full Trace Events 4 | . 1 . 3 . . Feedback Events . | . . . . . . Feedback Blocked . | . . . . . . Robot Schematics Acquired . | . . . . . . Robots Built . | . . . . . . Authchips . | . . . . . . Time . | . . . . . . Total Robot Build Rating . | . . . . . . Part Schematics Acquired . | . . . . . . Parts Built . | . . . . . . Authchips . | . . . . . . Time . | . . . . . . Total Part Build Rating . | . . . . . . Part Studies Acquired . | . . . . . . Parts Repaired 1 | . . . . 1 . Time 26 | . . . . 26 . Parts Recycled . | . . . . . . Recycled Matter . | . . . . . . Retrieved Matter . | . . . . . . Retrieved Components . | . . . . . . Parts Scanalyzed . | . . . . . . Part Schematics Acquired . | . . . . . . Parts Damaged . | . . . . . . Bothacking | -11 -10 -10 -9 -8 -8 ------------ Run | Yrd Mat Min Mat Mat Gar Used RIF Installer . | . . . . . . Robots Hacked . | . . . . . . Non-combat . | . . . . . . Combat . | . . . . . . Robot Hacks Applied . | . . . . . . Relay Couplers Released 14 | . . . . . 14 Machine Destruction 10 | . . . . . 10 Programmers 4 | . . . . . 4 Fabnet Peak Effective % . | . . . . . . Robots Rewired 4 | . . . . . 4 Allies Hacked . | . . . . . . Hacks Repelled . | . . . . . . Allies | -11 -10 -10 -9 -8 -8 -------- Run | Yrd Mat Min Mat Mat Gar Total Allies 5 | . . . 1 . 4 Largest Group 4 | . . . 1 1 4 Highest-Rated Group 91 | . . . 10 10 91 Highest-Rated Ally 31 | . . . 10 10 31 Total Orders 9 | . . . 4 . 5 STAY 6 | . . . 2 . 4 FOLLOW 3 | . . . 2 . 1 Ally Attacks 25 | . . . . . 25 Total Damage 551 | . . . . . 551 Kills 6 | . . . . . 6 Allies Corrupted . | . . . . . . Allies Melted 1 | . . . . . 1 Intel | -11 -10 -10 -9 -8 -8 ------- Run | Yrd Mat Min Mat Mat Gar Active Infowar (turns) 1923 | . 592 1121 210 . . Sensors 585 | . 585 . . . . Terrain 1338 | . 7 1121 210 . . ECM 190 | . . . 190 . . Robot Analysis Total . | . . . . . . Derelict Logs Recovered 1 | . . 1 . . . Drone Launches . | . . . . . . Drone Recoveries . | . . . . . . Exploration | -11 -10 -10 -9 -8 -8 ------------- Run | Yrd Mat Min Mat Mat Gar Turns Passed 4356 | 160 652 1121 914 162 1347 Spaces Moved 2115 | 56 365 581 421 70 622 Core 29 | 19 . . 6 . 4 Treads . | . . . . . . Legs 2086 | 37 365 581 415 70 618 Wheels . | . . . . . . Hover . | . . . . . . Flight . | . . . . . . Fastest Speed 50 | 50 120 120 120 120 120 Average Speed 137 | 110 120 120 179 180 134 Slowest Speed 400 | 250 120 120 350 190 400 Overloaded Moves . | . . . . . . Propulsion Burnouts . | . . . . . . Robots Hopped . | . . . . . . Potential Cave-ins . | . . . . . . Cave-ins Triggered . | . . . . . . Exploration Rate (%) 44 | 5 59 90 36 8 71 Regions Visited 5 Branch Regions 1 Pre-discovered Areas . | . . . . . . Known Exits Taken 2 | . . 1 . 1 . Unknown Exits Taken 3 | 1 1 . 1 . . Scrap Searched 1 | . . 1 . . . Spaces Dug . | . . . . . . Terrain Destroyed 3 | . . . 3 . . Melee . | . . . . . . Projectile 3 | . . . 3 . . AOE . | . . . . . . Terrain Rammed . | . . . . . . Walls Destroyed . | . . . . . . Machines Disabled . | . . . . . . Actions | -11 -10 -10 -9 -8 -8 --------- Run | Yrd Mat Min Mat Mat Gar Total 3108 | 154 481 976 506 107 884 Wait 553 | 85 33 369 11 29 26 Move 2110 | 55 364 580 420 69 622 Hop . | . . . . . . Pick Up 61 | 8 13 4 14 4 18 Fast Attach 8 | . 1 . . . 7 Attach 29 | 6 3 . 9 2 9 Detach . | . . . . . . Swap 50 | . 10 1 9 1 29 Drop 35 | . 7 5 5 2 16 Fire 228 | . 50 16 38 . 124 Melee . | . . . . . . Ram . | . . . . . . Kick 1 | . . 1 . . . Crush . | . . . . . . Escape Stasis 10 | . . . . . 10 Rewire 23 | . . . . . 23 Trap . | . . . . . . Miscellaneous . | . . . . . . Route ------- -11/Scrapyard -10/Materials (discovered 4 exits: *Mat x3 / [*Min]) -10/Mines (discovered 3 exits: *Mat x2 / *Sub) -9/Materials (discovered 3 exits: *Mat / Min x2) -8/Materials -8/Garrison (discovered 2 exits: [*Mat x2]) History --------- Turn | Location | Event 11 | -11/Scrapyard | Discovered new exit (range 16) 161 | -11/Scrapyard | Entered Materials 318 | -10/Materials | Build established: Mutant 458 | -10/Materials | Discovered new exit (range 3) 535 | -10/Materials | Identified exit to Materials 661 | -10/Materials | Derelicts attacked the area 783 | -10/Materials | Discovered new exit (range 8) 813 | -10/Materials | Entered Mines 914 | -10/Mines | Met a Derelict bent on vengeance 1069 | -10/Mines | Discovered exit to Materials (range 13) 1142 | -10/Mines | Identified exit to Subcaves 1619 | -10/Mines | Found a damaged Exp. Sensor Array with a note attached 1622 | -10/Mines | Found Prototype Device 1745 | -10/Mines | Build established: Scavenger-Mutant 1851 | -10/Mines | Core integrity fell below 50% 1922 | -10/Mines | Discovered exit to Materials (range 7) 1934 | -10/Mines | Entered Materials 1934 | -9/Materials | Evolved 2 slots: Utility x2 1969 | -9/Materials | Identified exit to Mines 2180 | -9/Materials | Lost 7 parts (1p2n2u2w) 2223 | -9/Materials | Build established: Hacker-Mutant 2448 | -9/Materials | Discovered new exit (range 10) 2585 | -9/Materials | Build established: Scavenger-Mutant 2848 | -9/Materials | Entered another Materials area 2848 | -8/Materials | Accompanied by 1 ally 2848 | -8/Materials | Evolved 2 slots: Propulsion x1, Utility x1 2930 | -8/Materials | Repaired Welding Torch 3005 | -8/Materials | Identified exit to Garrison 3010 | -8/Materials | Entered Garrison 3010 | -8/Garrison | Accompanied by 1 ally 3052 | -8/Garrison | Triggered checkpoint 3109 | -8/Garrison | Garrison Relay disabled 3294 | -8/Garrison | Lost 8 parts (3n3u2w) 3396 | -8/Garrison | Triggered checkpoint 3518 | -8/Garrison | Discovered new exit (range 11) 3556 | -8/Garrison | Triggered checkpoint 3809 | -8/Garrison | Core integrity fell below 50% 3950 | -8/Garrison | Triggered checkpoint 4082 | -8/Garrison | Triggered checkpoint 4146 | -8/Garrison | Garrison Relay disabled 4183 | -8/Garrison | Discovered new exit (range 5) 4274 | -8/Garrison | Spotted B-75 Beast 4323 | -8/Garrison | Core integrity fell below 20% 4353 | -8/Garrison | Lost 6 parts (1p3n1u1w) 4357 | -8/Garrison | Destroyed by B-75 Beast with Magnetic Acceleration Cannon Last Messages --------------- 04293_ Aluminum Leg destroyed. 04295_ Slug penetrates B-75 Beast. 04298_ B-75 Beast suffers critical hit (Destroy). 04300_ Aluminum Leg destroyed. 04300_ Knocked back. 04303_ Lgt. Nuclear Core destroyed. 04303_ Carbon-fiber Leg destroyed. 04306_ Knocked back. 04307_ Acquired 10 matter. 04307_ Slug penetrates B-75 Beast. 04310_ B-75 Beast suffers critical hit (Burn). 04310_ Slug penetrates B-75 Beast. 04319_ Gauss Rifle destroyed. 04320_ Acquired 2 matter. 04322_ Imp. Heat Sink destroyed. 04327_ Acquired 3 matter. 04346_ B-75 Beast suffers critical hit (Burn). 04354_ Lgt. Assault Rifle destroyed. 04354_ Adv. Heat Sink destroyed. Map ----- +----------------------------------------------------+ | [ #????????????# %[ ## #??????#" "#????? | | #????????????# ### ![#### #???????" "#????? | | ## ###????????????# #?#% %" #???????" ""?????? | | ?# ###????????????# #?######## #???????# #??????? | | ?# #"#????????????# #????????# #???????# #?###???? | | ?#^ "#????######### #????????# #???????# #?#"#???? | | ?# "#????# + #????????# ######??# #?#"##### | | ?# "#????# ##]]]## #????????# ## #?##"###"""""" | | ?# #"#????# ####### ##########"## < ### " " | | ?# ###????# + + " " " | | ?# #??????# ##[[[## ##### ### " | | ?# #??????# ####### #???# ###"######?# " " | | ?# #??????# + #???# #?# #??????# """ "" | | ## #??????# ##///## #???# #?# #??????# " # | | #??????# ####### #???# #?# #??????# # | | !#??????# #?????# #???# #?# #??????# # | | *=#??????# #?????# ??? +? #??????# # | | ##%#??????# #?????#+#???# #?###??????# # | | ?# #??????# #???????????# #??????????###### ##### | | ## #??????# #???????????# #???????????????# #???? | | %#??????# #???????????# #???????????##### #???? | | ####??????# #######+##### #######+#####!!## #???? | | #?????????# ## BB%% + #???? | | #?????????# + BB * ####???? | | #?????????#"## ######### ####"####""+#!!#??????? | | ######????# ## #???????#@ #?????# "% ####??????? | | #????# ## #???????# %#?????# " #?????????? | | #### #????# ## #???????# #?????#### #?????????? | | #??# #?####+## #???????# #????????# #?????????? | | #??# #?# ## #???????# #????????# #?????????? | | #?##"###" ## ##??????# #???????? ^?????????? | | ### [ %" #####??# #???????? ?????????? | | =%== #???????? ????????? | | *%* +?????+?? ????????? | | ### ##%[ ## ###########???????]] !!????????? | | ### = ## ## #?????????????????#######???????? | | # [% ^ "???????????????????????????????? | | # = ^ "???????????????????????????????? | | # " ^ "???????????????????????????????? | | # "%" ^ "?+?????????????????????????????? | | ###% ## ## #???????????????????????????????? | | ###= ## ## ####+##?????????????????????????? | | + ?????????????????????????? | | " ?????????????????????????? | | ### * ?????????????????????????? | | ??# %## % *##++###??+???????????????????????????? | | ??# ## =[%#????????????????????????????????????? | | ### #######????????????????????????????????????? | | + #??????????????????????????????????????????? | | ### =*#??????????????????????????????????????????? | +----------------------------------------------------+ Best States ------------- Heat Dissipation 78 Energy Generation 14 Energy Capacity 275 Matter Stores 300 Matter Capacity 300 Sight Range 16 Robot Scan Range 14 Terrain Scan Range 14 Terrain Scan Density 10 ECM Strength 1 Armor Coverage 150 Resistance: KI 20 Resistance: TH 20 Resistance: EX 20 Resistance: EM 20 Resistance: I 20 Resistance: S 20 Resistance: P 20 Evasion (%) 55 Offensive Hacking 20 Item Schematics ----------------- None Robot Schematics ------------------ None Fabricated ------------ Nothing Repaired ---------- Welding Torch | 43% | -8/Materials Studied --------- None Alien Tech Used ----------------- None Achievements -------------- Let Me Out Of Here Oppo Buddy Challenges ------------ None Game ------ Seed GodVoltaicMicrothruster Manual? 0 Play Time 00:43:15 Cumulative 33.9 hours Start 2026.07.28 @ 15:35:31 End 2026.07.28 @ 16:20:26 Sessions 1 Manual Loads 0 Difficulty Adventurer Special Mode None Game No. 34 Rogue 0 Adventurer 33 Explorer 1 Win Type - Total 1 Types 1/0/0/0/0/0/0/0/0/0 Lore% 17 Gallery% 33 Achievement% 24 Wizard Run 0 Options --------- Layout 1 ASCII 0 Keyboard 0 Movement Mouse Keybinds 0 Fullscreen 2 Font 24/Smallcaps Map View 50x35 Zoom Use 20% Tactical HUD 1 Map Filters NONE Filters NONE Steam 1 RUN: 63b8561e-3717-4b4a-a976-5c9ec6442be2